bitfinex/quotes_SOLUSD_20260224
["timestamp","ask_amount","ask_price","bid_price","bid_amount"]
[1771905666001,12.57268369,77.05,77.024,12.98296634]
[1771905666179,0.9896658,77.039,77.01,12.98532658]
[1771905666374,0.9896658,77.039,77.011,0.99388592]
[1771905666575,3.69383402,77.057,77.021,0.99388592]
[1771905666576,0.99099747,77.055,77.021,0.99388592]
[1771905667502,3.69383402,77.057,77.022,12.98330347]
[1771905667707,3.69383402,77.057,77.023,0.99388592]
[1771905668202,12.97757475,77.056,77.023,0.99388592]
[1771905668396,11.58301789,77.06,77.023,0.99388592]
[1771905669099,12.97706951,77.059,77.023,0.99388592]
[1771905669303,11.58301789,77.07,77.031,0.99388592]
[1771905669606,12.97538569,77.069,77.031,0.99388592]
[1771905670005,13.97029911,77.069,77.033,0.99388592]
[1771905671607,253.63526716,77.491,77.051,0.99388592]
[1771905671608,0.99743978,77.086,77.051,0.99388592]
[1771905672113,0.99743978,77.085,77.053,0.99388592]
[1771905672895,0.28432314,77.084,77.05,11.58301789]
[1771905673104,0.99866967,77.069,77.036,0.99388592]
[1771905673310,11.58301789,77.06,77.036,0.99388592]
[1771905673616,11.58301789,77.07,77.041,0.99388592]
[1771905674003,0.99989819,77.07,77.041,0.99388592]
[1771905674203,12.58291608,77.07,77.042,12.97993302]
[1771905674405,12.58291608,77.07,77.042,13.97381894]
[1771905674713,1.00111167,77.069,77.042,12.97993302]
[1771905674912,13.97649736,77.069,77.042,12.97993302]
[1771905675101,1.00111167,77.069,77.042,12.97993302]
[1771905675705,1.00111167,77.069,77.043,0.99388592]
[1771905676611,1.00349418,77.059,77.026,33.45032539]
[1771905676814,1.00349418,77.059,77.027,0.99388592]
[1771905677517,1.00349418,77.059,77.027,12.98246069]
[1771905677720,1.00349418,77.059,77.03,0.99388592]
[1771905679820,1.00349418,77.059,77.031,14.05885134]
[1771905680726,1.00349418,77.059,77.032,1.07706479]
[1771905682015,1.00349418,77.059,77.033,12.9814495]
[1771905682722,1.01251182,77.058,77.033,12.9814495]
[1771905684228,1.01251182,77.058,77.033,14.05252643]
[1771905684928,1.01462972,77.066,77.034,1.07107693]
[1771905685309,12.97605917,77.065,77.034,1.07107693]
[1771905686230,1.01568557,77.065,77.036,1.07107693]
[1771905686619,1.01672799,77.072,77.041,1.07107693]
[1771905686927,12.97504898,77.071,77.041,1.07107693]
[1771905687104,13.99177697,77.071,77.041,1.07107693]
[1771905687822,1.01773886,77.069,77.041,1.07107693]
[1771905688208,1.01773886,77.067,77.029,1.07107693]
[1771905688411,1.01773886,77.059,77.029,1.07107693]
[1771905690430,12.97555405,77.068,77.031,1.07107693]
[1771905690918,1.01972612,77.073,77.041,1.07107693]
[1771905691223,1.02070126,77.071,77.041,1.07107693]
[1771905691424,1.02070126,77.059,77.026,14.05370617]
[1771905691628,1.02070126,77.059,77.027,1.07107693]
[1771905692011,1.02165404,77.064,77.031,1.07107693]
[1771905692207,1.02165404,77.064,77.032,12.98161802]
[1771905692409,1.02165404,77.064,77.033,1.07107693]
[1771905694428,5.18491124,77.07,77.04,5.18491124]
[1771905694615,1.02450132,77.071,77.041,1.07107693]
[1771905696532,1.02450132,77.071,77.042,12.97993302]
[1771905696738,1.02450132,77.071,77.043,1.07107693]
[1771905696927,5.18271263,77.07,77.043,1.07107693]
[1771905697132,1.02630599,77.069,77.043,1.07107693]
[1771905698632,1.02810186,77.079,77.045,1.07107693]
[1771905698844,1.02810186,77.069,77.045,1.07107693]
[1771905699551,1.02897594,77.059,77.034,12.98117023]
[1771905699933,11.57026622,77.06,77.035,1.07107693]
[1771905700132,11.57026622,77.07,77.035,1.07107693]
[1771905700449,1.02897594,77.069,77.035,1.07107693]
[1771905702729,1.03152129,77.059,77.03,12.98190684]
[1771905702943,1.03152129,77.059,77.03,14.05298377]
[1771905703247,1.03152129,77.059,77.03,12.98190684]
[1771905703428,1.03152129,77.059,77.031,1.07107693]
[1771905703844,1.03235622,77.064,77.031,1.07107693]
[1771905704048,1.03235622,77.081,77.051,1.07107693]
[1771905704547,1.03316809,77.079,77.051,1.07107693]
[1771905706541,14.00864152,77.078,77.051,1.07107693]
[1771905706937,12.97225946,77.088,77.053,1.07107693]
[1771905707142,3.69383402,77.085,77.053,1.07107693]
[1771905707341,1.0347709,77.087,77.053,1.07107693]
[1771905707934,12.97252419,77.086,77.06,25.61026172]
[1771905708248,12.97252419,77.086,77.061,1.06316425]
[1771905708249,14.00885806,77.086,77.061,1.06316425]
[1771905709532,12.97286077,77.084,77.061,1.06316425]
[1771905709739,14.01073606,77.084,77.061,1.06316425]
[1771905711641,11.57026622,77.09,77.065,1.06316425]
[1771905711952,1.03938368,77.093,77.065,1.06316425]
[1771905712158,12.97064034,77.098,77.071,1.06316425]
[1771905713356,0.1,77.11,77.081,1.06316425]
[1771905713357,12.96893172,77.108,77.081,1.06316425]
[1771905713855,12.96893172,77.108,77.083,1.06316425]
[1771905714163,14.0094872,77.109,77.083,1.06316425]
[1771905714537,1.04083244,77.109,77.083,1.06316425]
[1771905716134,12.96442055,77.135,77.09,11.57026622]
[1771905716451,0.1,77.15,77.084,12.97286077]
[1771905716452,1.04226475,77.139,77.101,1.06316425]
[1771905717141,1.04226475,77.139,77.111,1.06316425]
[1771905717348,0.1,77.15,77.111,1.06316425]
[1771905717561,5.37353936,77.2,77.141,1.06316425]
[1771905717562,1.04279616,77.173,77.141,1.06316425]
[1771905717737,1.04279616,77.173,77.141,0.96316425]
[1771905718135,14.00073435,77.173,77.142,12.96310699]
[1771905718535,1.24279616,77.18,77.142,45.37087448]
[1771905718735,6.41633552,77.18,77.15,5.17353936]
[1771905719154,0.2,77.18,77.15,5.17353936]
[1771905719356,0.2,77.18,77.142,12.96310699]
[1771905719357,5.27353936,77.17,77.142,12.96310699]
[1771905719556,1.14279616,77.17,77.142,12.96310699]
[1771905719749,6.31633552,77.17,77.143,1.06316425]
[1771905720055,1.14279616,77.17,77.143,1.06316425]
[1771905720255,1.04279616,77.169,77.143,1.06316425]
[1771905720554,0.1,77.17,77.145,1.06316425]
[1771905720954,1.04279616,77.168,77.131,1.06316425]
[1771905721257,12.95857144,77.169,77.121,1.06316425]
[1771905721258,1.04279616,77.159,77.121,1.06316425]
[1771905721768,1.04279616,77.149,77.114,1.06316425]
[1771905723356,1.04279616,77.147,77.116,1.06316425]
[1771905724368,11.54683605,77.14,77.116,1.06316425]
[1771905724665,1.04279616,77.139,77.116,1.06316425]
[1771905726068,1.04279616,77.139,77.11,11.54683605]
[1771905726069,1.04279616,77.139,77.112,1.06316425]
[1771905726254,1.04279616,77.146,77.12,11.54683605]
[1771905726566,1.04279616,77.146,77.121,1.06316425]
[1771905726965,1.04279616,77.129,77.102,12.969788]
[1771905727360,1.04279616,77.119,77.096,12.97077645]
[1771905728267,1.04279616,77.119,77.09,12.6100003]
[1771905728268,1.04279616,77.119,77.091,12.97168281]
[1771905728453,1.04279616,77.119,77.092,1.06316425]
[1771905729374,1.04279616,77.126,77.092,1.06316425]
[1771905729781,1.04279616,77.129,77.092,1.06316425]
[1771905730070,1.04279616,77.129,77.101,1.06316425]
[1771905730954,1.04279616,77.129,77.102,12.96983217]
[1771905731264,1.04279616,77.129,77.103,1.06316425]
[1771905732666,1.04279616,77.153,77.121,1.06316425]
[1771905732852,1.04279616,77.153,77.102,110.24357344]
[1771905732853,12.96053282,77.158,77.131,1.06316425]
[1771905733054,12.96053282,77.158,77.133,1.06316425]
[1771905733265,1.04279616,77.16,77.132,12.96478763]
[1771905733266,0.1,77.17,77.141,1.06316425]
[1771905733469,0.2,77.18,77.151,1.06316425]
[1771905733769,0.2,77.19,77.171,1.06316425]
[1771905734067,1.04279616,77.179,77.148,1.06316425]
[1771905734370,1.04279616,77.178,77.141,1.06316425]
[1771905734672,1.04279616,77.179,77.141,1.06316425]
[1771905734863,11.54683605,77.17,77.141,1.06316425]
[1771905735067,1.04279616,77.177,77.143,1.06316425]
[1771905735372,11.54683605,77.17,77.143,1.06316425]
[1771905735569,12.9570603,77.178,77.135,1.06316425]
[1771905735570,12.58963221,77.16,77.135,1.06316425]
[1771905735867,45.34971105,77.178,77.128,1.06316425]
[1771905735868,11.54683605,77.15,77.128,1.06316425]
[1771905736174,1.04279616,77.149,77.121,1.06316425]
[1771905736466,11.54683605,77.14,77.111,1.06316425]
[1771905736669,12.58963221,77.14,77.111,1.06316425]
[1771905736973,12.58963221,77.14,77.067,57.26326714]
[1771905736974,12.96529191,77.129,77.104,1.06316425]
[1771905737167,1.04279616,77.128,77.096,1.06316425]
[1771905737374,11.54683605,77.12,77.096,1.06316425]
[1771905737668,1.04279616,77.119,77.089,1.06316425]
[1771905737858,1.04279616,77.119,77.09,12.97185108]
[1771905739561,1.04279616,77.119,77.09,1.13344919]
[1771905740069,1.04279616,77.119,76.899,50.93051409]
[1771905740070,1.04580642,77.109,77.076,1.13344919]
[1771905740373,1.04580642,77.099,77.061,1.13344919]
[1771905740565,11.54683605,77.09,77.061,1.13344919]
[1771905740959,11.54683605,77.1,77.062,1.13344919]
[1771905741160,11.54683605,77.07,77.041,1.13344919]
[1771905741362,1.04580642,77.086,77.041,1.13344919]
[1771905741564,12.97134629,77.093,77.061,1.13344919]
[1771905741765,1.04578879,77.079,77.051,1.11742755]
[1771905741968,1.04578879,77.087,77.052,1.11742755]
[1771905742277,11.54683605,77.09,77.052,1.11742755]
[1771905742475,12.9704934,77.099,77.061,1.11742755]
[1771905743160,12.96831839,77.111,77.07,11.54683605]
[1771905743360,12.96831839,77.111,77.081,1.11742755]
[1771905743665,1.04578879,77.117,77.083,1.11742755]
[1771905745580,11.54683605,77.11,77.083,1.11742755]
[1771905745876,11.54683605,77.11,77.084,12.97286077]
[1771905746060,11.54683605,77.11,77.085,1.11742755]
[1771905746756,1.04578879,77.117,77.085,1.11742755]
[1771905747181,1.04578879,77.115,77.085,1.11742755]
[1771905747590,12.59262484,77.12,77.085,1.11742755]
[1771905748064,12.96697311,77.119,77.087,1.11742755]
[1771905748666,12.96609627,77.125,77.091,1.11742755]
[1771905748867,14.01023306,77.135,77.101,1.11742755]
[1771905750773,11.54683605,77.12,77.095,12.970888]
[1771905750969,1.04578879,77.119,77.095,12.970888]
[1771905751279,11.54683605,77.11,77.086,1.11742755]
[1771905751577,1.04578879,77.111,77.072,1.11742755]
[1771905751783,11.54683605,77.11,77.072,1.11742755]
[1771905752161,1.04578879,77.111,77.081,1.11742755]
[1771905753387,1.04578879,77.111,77.083,1.11742755]
[1771905753565,24.51532262,77.11,77.083,1.11742755]
[1771905754266,25.56111141,77.11,77.083,1.11742755]
[1771905754469,1.04578879,77.11,77.083,1.11742755]
[1771905754664,11.54683605,77.12,77.083,1.11742755]
[1771905754885,3.69383402,77.125,77.091,1.11742755]
[1771905755086,1.04578879,77.143,77.111,1.11742755]
[1771905755464,14.00888354,77.143,77.112,12.96815022]
[1771905755666,11.54683605,77.14,77.113,1.11742755]
[1771905755972,1.04578879,77.139,77.106,14.08655986]
[1771905756166,11.54683605,77.13,77.106,14.08655986]
[1771905757179,1.04578879,77.144,77.111,1.11742755]
[1771905757385,1.04578879,77.139,77.1,11.54941262]
[1771905757593,1.04578879,77.127,77.096,1.11742755]
[1771905757771,1.04578879,77.119,77.093,12.97120629]
[1771905757974,1.04578879,77.119,77.088,1.11742755]
[1771905758294,12.96546001,77.128,77.101,1.11742755]
[1771905758788,1.04578879,77.127,77.09,11.54941262]
[1771905758990,1.04578879,77.127,77.091,1.11742755]
[1771905759693,12.96579622,77.126,77.093,1.11742755]
[1771905760901,14.0096869,77.138,77.101,1.11742755]
[1771905761098,51.81723885,77.195,77.092,45.40030093]
[1771905761099,1.04578879,77.148,77.111,1.11742755]
[1771905761477,1.04578879,77.139,77.111,1.11742755]
[1771905762095,1.04578879,77.139,77.113,1.11742755]
[1771905762782,12.96266856,77.145,77.113,1.11742755]
[1771905763182,1.04578879,77.144,77.113,1.11742755]
[1771905764374,12.96293895,77.143,77.114,12.96781388]
[1771905764579,14.00872774,77.143,77.114,12.96781388]
[1771905764801,1.04578879,77.142,77.114,12.96781388]
[1771905765184,1.04578879,77.142,77.114,14.08524143]
[1771905765498,12.96327504,77.141,77.115,1.11742755]
[1771905766580,1.04578879,77.142,77.115,1.11742755]
[1771905766781,1.04578879,77.144,77.115,1.11742755]
[1771905766986,1.04578879,77.144,77.12,11.54941262]
[1771905767275,1.04578879,77.144,77.115,1.11742755]
[1771905767689,14.00855971,77.144,77.116,12.96747756]
[1771905767903,14.00855971,77.144,77.117,1.11742755]
[1771905768789,11.54941262,77.16,77.121,1.09143591]
[1771905768983,51.80437381,77.214,77.141,1.09143591]
[1771905768984,14.0630776,77.171,77.141,1.09143591]
[1771905769189,1.104842,77.171,77.141,1.09143591]
[1771905769582,12.95689241,77.179,77.143,1.09143591]
[1771905769779,1.104842,77.178,77.143,1.09143591]
[1771905772887,12.95857144,77.169,77.143,1.09143591]
[1771905773087,1.104842,77.168,77.143,1.09143591]
[1771905773420,1.104842,77.168,77.136,12.96405999]
[1771905773714,1.104842,77.168,77.137,1.09143591]
[1771905775527,14.0637493,77.167,77.139,1.09143591]
[1771905775728,1.104842,77.166,77.139,1.09143591]
[1771905778929,12.95924318,77.165,77.141,1.09143591]
[1771905780033,14.06408518,77.165,77.141,1.09143591]
[1771905780421,1.104842,77.195,77.15,5.16987917]
[1771905780619,1.104842,77.179,77.14,12.96344309]
[1771905780932,12.95808856,77.172,77.141,1.09143591]
[1771905781230,12.95664436,77.181,77.151,1.09143591]
[1771905781434,1.104842,77.179,77.151,1.09143591]
[1771905781615,1.104842,77.169,77.134,1.09143591]
[1771905783528,1.104842,77.167,77.136,1.09143591]
[1771905784119,1.104842,77.159,77.131,12.96495572]
[1771905784629,1.104842,77.159,77.131,14.05639163]
[1771905784825,1.104842,77.159,77.132,1.09143591]
[1771905785821,1.104842,77.159,77.134,1.09143591]
[1771905786635,1.104842,77.157,77.127,1.09143591]
[1771905786832,1.104842,77.149,77.122,1.09143591]
[1771905787514,11.53506855,77.17,77.131,1.09143591]
[1771905787838,0.14216157,77.175,77.143,1.09143591]
[1771905788020,1.24700357,77.175,77.143,1.09143591]
[1771905789036,1.24700357,77.175,77.136,14.05539882]
[1771905789037,1.104842,77.169,77.136,14.05539882]
[1771905789220,12.63991055,77.16,77.136,14.05539882]
[1771905789419,11.53506855,77.17,77.137,1.09143591]
[1771905789820,12.95857144,77.169,77.137,1.09143591]
[1771905790238,1.104842,77.168,77.137,1.09143591]
[1771905791219,1.104842,77.159,77.136,12.96396291]
[1771905791420,1.104842,77.159,77.131,12.96488461]
[1771905791626,1.104842,77.159,77.132,1.09143591]
[1771905792332,1.104842,77.159,77.121,1.09143591]
[1771905792535,1.104842,77.159,77.124,1.09143591]
[1771905793736,1.104842,77.149,77.125,12.96596434]
[1771905795049,1.104842,77.149,77.125,1.09143591]
[1771905795226,11.53506855,77.16,77.125,1.09143591]
[1771905795426,12.96025091,77.159,77.125,1.09143591]
[1771905795854,1.104842,77.158,77.125,1.09143591]
[1771905796025,1.104842,77.149,77.118,1.09143591]
[1771905797751,1.104842,77.147,77.119,12.96697311]
[1771905798755,14.04705365,77.146,77.12,1.13185691]
[1771905799070,1.08461879,77.149,77.12,1.13185691]
[1771905800869,1.08461879,77.147,77.12,1.13185691]
[1771905801070,1.08461879,77.145,77.11,11.53506855]
[1771905801368,1.08461879,77.139,77.106,1.13185691]
[1771905801548,6.25953639,77.13,77.106,1.13185691]
[1771905801747,1.08461879,77.129,77.106,1.13185691]
[1771905802050,1.08461879,77.129,77.09,5.1749176]
[1771905802251,1.08461879,77.129,77.082,32.43280457]
[1771905802252,1.12062584,77.119,77.089,14.09507742]
[1771905802565,1.12062584,77.119,77.09,1.12312865]
[1771905803062,1.12062584,77.117,77.09,1.12312865]
[1771905803666,5.1749176,77.11,77.09,1.12312865]
[1771905803962,1.12062584,77.109,77.082,1.12312865]
[1771905804182,1.12062584,77.099,77.062,1.12312865]
[1771905804869,5.1749176,77.09,77.062,1.12312865]
[1771905805172,12.97168281,77.091,77.064,1.12312865]
[1771905806065,12.97048859,77.099,77.064,1.12312865]
[1771905806257,12.97048859,77.099,77.063,12.97639593]
[1771905806258,12.97048859,77.099,77.071,1.12312865]
[1771905806664,1.12062584,77.098,77.071,1.12312865]
[1771905807160,5.1749176,77.09,77.071,1.12312865]
[1771905807355,14.09129914,77.097,77.071,1.12312865]
[1771905807776,1.12062584,77.096,77.071,1.12312865]
[1771905807972,1.12062584,77.089,77.055,1.12312865]
[1771905808472,5.1749176,77.08,77.055,1.12312865]
[1771905808683,5.1749176,77.07,77.031,12.98178655]
[1771905808888,5.1749176,77.06,77.037,1.12312865]
[1771905809263,12.97706951,77.059,77.037,1.12312865]
[1771905809461,12.97706951,77.059,77.005,3.69383402]
[1771905809462,5.1749176,77.05,77.03,1.12312865]
[1771905809671,1.12062584,77.049,77.011,1.12312865]
[1771905810470,1.12062584,77.039,77.011,1.12312865]
[1771905810766,1.12062584,77.029,77.004,1.12312865]
[1771905811377,11.58301938,77.02,77.0,0.2]
[1771905811581,0.28432314,77.048,77.0,0.2]
[1771905811582,11.58301938,77.04,77.011,1.12312865]
[1771905811766,11.58301938,77.05,77.021,1.12312865]
[1771905811964,12.97875378,77.049,77.021,1.12312865]
[1771905812381,1.12062584,77.049,77.021,1.12312865]
[1771905812576,12.70364522,77.04,77.014,1.12312865]
[1771905812776,11.58301938,77.03,77.002,1.12312865]
[1771905812980,11.58301938,77.02,77.0,0.2]
[1771905813284,1.12062584,77.019,77.0,0.2]
[1771905814380,0.28432314,77.029,77.0,0.2]
[1771905814587,11.58301938,77.01,77.0,0.2]
[1771905815472,1.12062584,77.019,77.0,0.2]
[1771905815884,12.98397777,77.018,77.0,0.2]
[1771905816968,11.58301938,77.01,77.0,0.2]
[1771905817384,1.12062584,77.017,77.0,0.2]
[1771905817698,11.58301938,77.03,77.001,1.12312865]
[1771905817995,12.70364522,77.03,77.001,1.12312865]
[1771905818597,11.58301938,77.04,77.001,1.12312865]
[1771905819298,11.57861609,77.04,77.001,1.12312865]
[1771905819995,1.12062584,77.038,77.003,1.12312865]
[1771905820204,11.57861609,77.03,77.003,1.12312865]
[1771905821387,11.57861609,77.02,77.0,0.2]
[1771905821594,11.57861609,77.03,77.001,12.98684432]
[1771905821773,11.57861609,77.03,77.002,1.12312865]
[1771905821979,12.69924193,77.03,77.002,1.12312865]
[1771905822184,14.10274945,77.029,77.002,1.12312865]
[1771905822399,1.12062584,77.028,77.002,1.12312865]
[1771905823191,1.12062584,77.028,77.0,0.2]
[1771905823192,11.57861609,77.02,77.0,0.2]
[1771905823389,1.12062584,77.019,77.0,0.2]
[1771905823699,11.57861609,77.01,77.0,0.2]
[1771905824189,1.12062584,77.019,77.0,0.2]
[1771905824399,1.12062584,77.017,77.0,0.2]
[1771905824696,11.57861609,77.01,77.0,0.2]
[1771905825577,1.12062584,77.009,76.98,1.32312865]
[1771905826895,1.12062584,77.026,76.982,1.12312865]
[1771905827092,1.12062584,77.026,76.991,1.12312865]
[1771905827093,12.98279779,77.025,76.991,1.12312865]
[1771905828183,11.57861609,77.02,76.991,1.12312865]
[1771905828993,11.57861609,77.02,76.993,1.12156556]
[1771905829700,1.11184403,77.024,76.993,1.12156556]
[1771905829701,12.98224046,77.029,76.993,1.12156556]
[1771905830496,3.69383402,77.035,77.001,1.12156556]
[1771905830706,12.98060697,77.038,77.011,1.12156556]
[1771905830897,13.12158917,77.045,77.013,1.12156556]
[1771905831584,11.57861609,77.04,77.013,1.12156556]
[1771905833594,14.0922825,77.039,77.013,1.12156556]
[1771905833801,1.11184403,77.038,77.013,1.12156556]
[1771905835288,1.11184403,77.038,77.014,1.12156556]
[1771905836295,12.98043847,77.039,77.014,1.12156556]
[1771905836605,11.57861609,77.05,77.016,1.12156556]
[1771905836793,1.11184403,77.049,77.016,1.12156556]
[1771905837693,11.57861609,77.05,77.016,1.12156556]
[1771905838001,11.57861609,77.05,77.015,45.44569239]
[1771905838002,12.97706951,77.059,77.021,1.12156556]
[1771905838304,12.97706951,77.059,77.023,1.12156556]
[1771905839294,24.55215008,77.08,77.04,11.57861609]
[1771905839495,1.11184403,77.069,77.041,1.12156556]
[1771905839700,1.11184403,77.079,77.041,1.12156556]
[1771905840407,12.97387062,77.078,77.043,1.12156556]
[1771905840592,1.11184403,77.077,77.043,1.12156556]
[1771905840787,1.11184403,77.059,77.022,1.12156556]
[1771905840991,12.69046012,77.05,77.022,1.12156556]
[1771905841685,1.11184403,77.05,77.022,1.12156556]
[1771905842789,1.11184403,77.05,77.024,1.12156556]
[1771905842988,12.97829946,77.052,77.024,1.12156556]
[1771905843705,11.57861609,77.04,77.011,1.12156556]
[1771905843898,1.11184403,77.039,77.002,1.12156556]
[1771905844100,11.57861609,77.03,77.002,1.12156556]
[1771905844494,12.69046012,77.03,77.002,1.12156556]
[1771905845215,14.09396764,77.029,77.002,1.12156556]
[1771905845427,14.09396764,77.029,77.003,12.98650701]
[1771905845708,1.11184403,77.028,77.003,12.98650701]
[1771905846218,1.11184403,77.028,77.002,1.12156556]
[1771905846511,1.11184403,77.036,77.003,1.12156556]
[1771905846699,3.69383402,77.047,77.011,1.12156556]
[1771905847015,11.57861609,77.05,77.011,1.12156556]
[1771905847196,12.97917969,77.047,77.013,1.12156556]
[1771905849335,3.69383402,77.056,77.021,1.12156556]
[1771905851649,12.97774317,77.055,77.023,1.12156556]
[1771905851840,14.0895872,77.055,77.023,1.12156556]
[1771905852038,12.97774317,77.055,77.023,1.12156556]
[1771905853255,1.11184403,77.049,77.016,1.12156556]
[1771905853754,1.11184403,77.047,77.018,1.12156556]
[1771905854264,11.57861609,77.04,77.018,1.12156556]
[1771905854632,1.11184403,77.045,77.018,1.12156556]
[1771905854858,11.57861609,77.04,77.018,1.12156556]
[1771905855035,1.11184403,77.039,77.007,1.12156556]
[1771905856173,12.98060697,77.038,77.007,1.12156556]
[1771905856879,12.98060697,77.038,77.009,1.12156556]
[1771905857159,1.11184403,77.037,77.009,1.12156556]
[1771905857538,12.98005847,77.042,77.011,1.12156556]
[1771905857842,12.69046012,77.04,77.011,1.12156556]
[1771905858358,12.98043847,77.039,77.011,1.12156556]
[1771905859560,12.9794276,77.045,77.011,1.12156556]
[1771905859865,1.1256885,77.056,77.021,1.10926838]
[1771905860644,1.1256885,77.055,77.021,1.10926838]
[1771905861748,1.05995792,77.049,77.021,1.10926838]
[1771905862245,1.05995792,77.049,77.023,1.04260731]
[1771905863175,1.05995792,77.058,77.023,1.04260731]
[1771905863343,12.97679795,77.061,77.031,1.04260731]
[1771905863538,11.57861609,77.05,77.021,12.98334188]
[1771905863751,11.57861609,77.05,76.987,51.95668601]
[1771905863752,1.05995792,77.049,77.019,1.04260731]
[1771905863951,12.97708037,77.059,77.021,1.04260731]
[1771905865562,12.97565819,77.068,77.031,1.04260731]
[1771905865764,11.57861609,77.07,77.033,1.04260731]
[1771905865954,12.63857401,77.07,77.033,1.04260731]
[1771905866157,11.57861609,77.07,77.033,1.04260731]
[1771905866461,1.05995792,77.079,77.041,1.04260731]
[1771905866660,1.05995792,77.069,77.041,1.04260731]
[1771905866876,1.05995792,77.069,77.032,45.43566309]
[1771905866877,11.57861609,77.06,77.034,1.04260731]
[1771905867054,11.57861609,77.06,77.021,1.04260731]
[1771905867055,1.05995792,77.059,77.021,1.04260731]
[1771905867665,1.05995792,77.049,77.022,1.04260731]
[1771905868055,1.05995792,77.057,77.022,1.04260731]
[1771905869764,12.63857401,77.05,77.023,12.9831349]
[1771905869970,1.05995792,77.049,77.016,1.04260731]
[1771905870957,1.05995792,77.039,77.016,1.04260731]
[1771905871280,1.05995792,77.039,77.009,1.04260731]
[1771905871974,1.05995792,77.029,77.006,12.98596851]
[1771905872172,1.05995792,77.029,77.002,12.98667567]
[1771905872563,1.05995792,77.029,77.002,14.02928298]
[1771905872975,1.05995792,77.029,77.003,1.04260731]
[1771905873659,1.05995792,77.029,77.002,12.98667567]
[1771905874186,1.05995792,77.029,76.999,1.04260731]
[1771905875055,1.05995792,77.029,77.0,12.98701298]
[1771905875358,1.05995792,77.029,77.001,1.04260731]
[1771905876383,1.05995792,77.029,77.002,12.98667567]
[1771905876759,1.05995792,77.029,77.002,14.02928298]
[1771905876964,1.05995792,77.036,77.003,1.04260731]
[1771905877568,14.04090189,77.036,77.003,1.04260731]
[1771905878184,1.05995792,77.035,77.003,1.04260731]
[1771905879207,1.05995792,77.033,77.005,1.04260731]
[1771905879384,1.05995792,77.029,77.005,1.04260731]
[1771905879574,6.24856537,77.02,76.997,12.98751899]
[1771905880082,6.24856537,77.02,76.997,14.0301263]
[1771905880270,1.05995792,77.019,76.997,1.04260731]
[1771905880774,1.05995792,77.019,76.988,1.04260731]
[1771905880964,1.05995792,77.019,76.989,1.04260731]
[1771905881163,1.05995792,77.017,76.991,1.04260731]
[1771905881364,12.98397777,77.018,76.991,1.04260731]
[1771905881565,12.98231272,77.028,76.991,1.04260731]
[1771905882280,1.05995792,77.04,77.011,1.04260731]
[1771905882471,12.98043847,77.039,77.011,1.04260731]
[1771905883785,12.98043847,77.039,77.012,12.98498935]
[1771905884085,1.05995792,77.044,77.013,1.04260731]
[1771905884464,12.97948439,77.045,77.013,1.04260731]
[1771905885382,3.69383402,77.046,77.014,12.98465214]
[1771905885568,12.97875378,77.049,77.015,1.04260731]
[1771905885776,12.97809347,77.053,77.021,1.04260731]
[1771905885978,1.05995792,77.052,77.021,1.04260731]
[1771905886167,1.05995792,77.049,77.021,1.04260731]
[1771905887479,1.05995792,77.039,77.007,1.04260731]
[1771905888169,1.05995792,77.039,77.011,1.04907193]
[1771905888771,1.03999899,77.029,76.998,1.04907193]
[1771905888973,5.18860745,77.04,77.001,1.04907193]
[1771905889179,1.03999899,77.044,77.011,1.04907193]
[1771905889562,6.22860644,77.04,77.011,1.04907193]
[1771905890284,1.03999899,77.04,77.011,1.04907193]
[1771905890593,1.03999899,77.04,77.011,12.98506306]
[1771905890771,1.03999899,77.04,77.012,1.04907193]
[1771905891288,1.03999899,77.039,77.012,1.04907193]
[1771905891686,1.03999899,77.037,77.012,1.04907193]
[1771905892069,12.98060697,77.038,77.012,14.03394448]
[1771905892268,12.98060697,77.038,77.013,1.04907193]
[1771905893296,12.97985859,77.043,77.014,1.04907193]
[1771905894792,12.97875378,77.049,77.015,12.98448354]
[1771905894970,12.97875378,77.049,77.016,1.04907193]
[1771905897488,12.97817907,77.053,77.021,1.04907193]
[1771905897675,12.97817907,77.053,77.031,1.04907193]
[1771905900288,14.01739267,77.058,77.032,12.98161802]
[1771905900476,1.03999899,77.057,77.033,1.04907193]
[1771905900791,1.03999899,77.049,77.021,1.04907193]
[1771905901085,1.03999899,77.049,76.984,55.65217558]
[1771905901086,1.03999899,77.039,77.011,14.03422989]
[1771905901272,1.03999899,77.039,77.012,1.04907193]
[1771905901674,1.03999899,77.053,77.012,1.04907193]
[1771905901880,12.97739368,77.058,77.021,1.04907193]
[1771905902090,1.03999899,77.057,77.021,1.04907193]
[1771905902273,12.97757475,77.056,77.022,12.98330347]
[1771905902479,1.03999899,77.055,77.023,1.04907193]
[1771905906501,5.18860745,77.05,77.025,1.04907193]
[1771905906680,1.03999899,77.039,77.003,1.04907193]
[1771905906881,1.03999899,77.019,76.997,1.04907193]
[1771905907300,5.18860745,77.02,76.997,1.04907193]
[1771905907797,1.03999899,77.009,76.98,0.2]
[1771905908001,3.69383402,77.022,76.98,0.2]
[1771905908002,1.03999899,76.999,76.98,0.2]
[1771905908686,12.98420078,77.017,76.982,1.04907193]
[1771905910503,5.18860745,77.02,76.981,45.46576427]